{"text_format":"1","workbook":"xlsx","n_sheets":1,"sheets":["令和８年度村民税"],"not_rendered":{"charts":0,"images":0,"macros":1,"external_links":0,"defined_names":1,"comments":1,"pivot_tables":0},"unopened":[],"bounds":{"document_bytes":16777216,"sheet_cells":100000,"rows_first":2000,"rows_last":500,"rows_between":2000,"halvings":0,"cell_chars":16384,"cell_head_chars":4096},"cells_cut":0,"cells_raw":0,"read":"whole","date_system":"1900"}

{"sheet":"令和８年度村民税","index":0,"n_rows":466,"n_cols":100,"rows_kept":466,"cut":false,"hidden":false,"merged":[[1,0,3,7],[1,98,3,100],[3,31,6,37],[3,38,6,41],[3,42,6,48],[3,49,4,61],[8,34,12,43],[8,44,12,55],[8,56,12,77],[8,78,12,85],[8,86,12,100],[3,62,6,74],[4,15,134,16],[4,17,134,19],[4,78,7,85],[4,86,7,100],[5,49,6,61],[13,23,17,33],[13,34,15,43],[13,44,17,55],[13,56,17,77],[18,34,20,43],[18,44,20,69],[18,70,25,76],[16,34,17,43],[13,78,17,85],[13,86,17,100],[21,22,22,26],[21,34,25,43],[21,44,25,67],[21,68,25,69],[26,83,30,100],[27,22,30,25],[27,26,30,29],[27,30,30,33],[23,22,26,25],[23,26,26,29],[23,30,26,33],[34,99,38,100],[26,34,30,38],[26,39,30,43],[26,44,30,54],[26,55,30,59],[26,60,30,71],[26,72,30,76],[26,77,30,82],[31,22,33,66],[36,22,50,29],[36,30,39,48],[36,49,39,65],[36,66,39,67],[39,75,43,83],[39,84,43,86],[39,87,43,100],[34,22,35,29],[34,30,35,48],[34,49,35,67],[34,70,85,72],[34,73,43,74],[34,75,38,83],[34,84,38,86],[34,87,38,98],[44,30,46,48],[44,49,46,67],[44,73,46,83],[44,84,46,86],[44,87,46,100],[40,30,43,48],[40,49,43,67],[51,22,53,29],[51,30,52,48],[51,49,52,67],[51,73,54,83],[51,84,54,86],[51,87,54,100],[47,30,50,48],[47,49,50,67],[47,73,50,83],[47,84,50,86],[47,87,50,100],[54,22,68,29],[55,73,58,83],[55,84,58,86],[55,87,58,100],[57,30,58,48],[57,49,58,67],[53,30,56,46],[53,47,56,48],[53,49,56,65],[53,66,56,67],[59,30,62,46],[59,47,62,48],[59,49,62,65],[59,66,62,67],[59,73,70,74],[59,75,62,83],[63,30,64,48],[63,49,68,67],[63,75,66,83],[63,84,66,86],[63,87,66,100],[65,30,68,46],[65,47,68,48],[67,75,70,83],[67,84,70,86],[67,87,70,100],[59,84,62,86],[59,87,62,100],[71,73,73,74],[71,75,75,83],[71,84,75,86],[71,87,75,100],[69,22,75,29],[69,30,71,48],[69,49,71,67],[72,30,75,46],[72,47,75,48],[72,49,75,65],[72,66,75,67],[76,87,80,100],[74,73,75,74],[76,22,78,29],[76,30,78,43],[76,44,78,52],[76,53,78,67],[76,73,78,74],[76,75,80,83],[76,84,80,86],[84,32,85,34],[84,35,85,52],[84,53,89,57],[84,58,89,65],[79,22,83,29],[79,30,83,43],[79,44,83,52],[79,53,83,67],[79,73,80,74],[81,73,85,83],[81,84,85,86],[81,87,85,100],[89,22,103,29],[90,32,93,37],[90,55,91,61],[90,62,93,67],[90,73,94,74],[90,75,94,83],[90,84,94,86],[90,87,94,100],[86,75,89,83],[86,84,89,86],[86,87,89,100],[88,0,137,0],[88,1,91,2],[88,3,91,7],[88,8,91,8],[88,9,91,11],[84,66,89,67],[85,0,87,11],[86,32,89,34],[86,35,89,52],[86,70,135,72],[86,73,89,74],[92,1,96,2],[92,3,96,7],[92,8,96,8],[92,9,96,11],[84,22,88,29],[84,30,93,31],[97,1,100,7],[97,8,100,8],[97,9,100,11],[107,73,110,83],[107,84,110,86],[107,87,110,100],[108,22,114,29],[111,30,114,35],[111,60,114,60],[111,61,114,67],[111,73,126,74],[111,75,114,83],[111,84,114,86],[95,73,98,83],[95,84,98,86],[95,87,98,100],[94,30,103,31],[94,32,95,34],[94,35,95,52],[94,53,99,57],[94,58,99,65],[94,66,99,67],[96,32,99,34],[96,35,99,52],[99,73,102,83],[99,84,102,86],[99,87,102,100],[103,73,106,83],[103,84,106,86],[103,87,106,100],[101,1,104,7],[101,8,104,8],[101,9,104,11],[100,32,103,37],[100,55,101,61],[100,62,103,67],[104,62,106,67],[105,1,116,7],[105,8,116,8],[105,9,116,11],[107,32,110,34],[107,35,110,51],[107,52,110,56],[107,57,110,65],[107,66,110,67],[104,22,107,29],[104,30,110,31],[104,32,106,34],[104,35,106,51],[104,52,106,57],[104,58,106,61],[117,1,124,7],[117,8,124,8],[117,9,124,11],[117,27,120,29],[117,30,120,42],[120,22,154,24],[121,27,124,31],[121,58,124,61],[125,1,128,4],[145,27,146,29],[145,30,146,42],[137,17,151,18],[137,27,140,29],[137,30,140,42],[154,1,157,7],[154,8,157,8],[154,9,157,11],[135,62,137,63],[138,62,140,63],[145,62,147,63],[148,62,150,63],[115,62,117,63],[115,75,118,83],[115,84,118,86],[115,87,118,100],[115,64,117,67],[118,64,120,67],[111,87,114,100],[115,22,119,24],[115,25,124,26],[115,27,116,29],[115,30,116,42],[115,43,120,44],[115,45,120,48],[115,49,120,54],[115,55,120,57],[115,58,120,61],[118,62,120,63],[119,75,122,83],[119,84,122,86],[119,87,122,100],[121,62,124,67],[123,75,126,83],[123,84,126,86],[123,87,126,100],[127,5,128,7],[127,9,128,11],[127,27,130,29],[127,30,130,42],[127,73,130,83],[127,84,130,86],[127,87,130,100],[125,30,126,42],[125,43,130,44],[125,45,130,48],[125,49,130,54],[125,55,130,57],[125,58,130,61],[125,5,126,7],[125,8,128,8],[125,9,126,11],[125,25,134,26],[125,27,126,29],[129,1,132,7],[129,8,132,8],[129,9,132,11],[133,1,137,7],[133,8,137,8],[133,9,137,11],[135,19,146,20],[135,25,144,26],[135,27,136,29],[135,30,136,42],[131,27,134,31],[131,58,134,61],[131,62,134,67],[131,73,135,83],[131,84,135,86],[136,73,139,83],[136,84,139,86],[136,87,139,100],[145,25,154,26],[184,87,187,100],[135,43,140,44],[135,45,140,48],[135,49,140,54],[135,55,140,57],[135,58,140,61],[140,73,141,83],[140,84,143,86],[140,87,143,100],[145,43,150,44],[131,87,135,100],[138,0,189,0],[138,1,141,7],[138,8,141,8],[138,9,141,11],[141,27,144,31],[141,58,144,61],[141,62,144,67],[142,1,145,7],[137,14,153,15],[137,16,149,16],[147,27,150,29],[147,30,150,42],[144,73,147,83],[144,84,147,86],[144,87,147,100],[142,8,145,8],[142,9,145,11],[142,73,143,83],[150,1,151,7],[150,8,153,8],[150,9,153,11],[148,73,151,83],[148,84,151,86],[148,87,151,100],[145,45,150,48],[145,49,150,54],[145,55,150,57],[145,58,150,61],[146,1,149,7],[146,8,149,8],[146,9,149,11],[154,84,155,86],[156,73,159,83],[156,84,157,86],[156,87,159,100],[152,1,153,7],[152,73,155,83],[152,84,153,86],[152,87,155,100],[151,27,154,31],[151,58,154,61],[160,27,163,29],[160,30,163,42],[160,73,163,83],[160,84,161,86],[160,87,163,100],[158,49,163,54],[158,55,163,57],[158,58,163,61],[158,62,163,63],[158,64,163,67],[158,84,159,86],[158,27,159,29],[158,30,159,42],[158,43,163,44],[158,45,163,48],[151,62,154,67],[162,1,165,7],[162,8,165,8],[162,9,165,11],[162,84,163,86],[158,1,161,7],[158,8,161,8],[158,9,161,11],[158,22,187,24],[158,25,167,26],[174,8,177,8],[174,9,177,11],[174,27,177,31],[174,58,177,67],[180,87,183,100],[184,84,187,86],[166,1,169,7],[166,8,167,8],[166,9,169,11],[164,27,167,31],[164,58,167,67],[164,73,167,83],[164,84,167,86],[164,87,167,100],[170,1,173,7],[170,8,173,8],[170,9,173,11],[170,27,173,29],[170,30,173,42],[172,73,175,83],[172,84,175,86],[172,87,175,100],[174,1,177,7],[168,58,173,61],[168,62,173,63],[168,64,173,67],[168,73,171,83],[168,84,171,86],[168,87,171,100],[168,8,169,8],[168,30,169,42],[168,43,173,44],[168,45,173,48],[168,49,173,54],[168,55,173,57],[178,64,183,67],[180,27,183,29],[180,30,183,42],[180,84,183,86],[178,1,181,7],[178,8,181,8],[178,9,181,11],[178,25,187,26],[178,27,179,29],[178,30,179,42],[178,43,183,44],[178,45,183,48],[176,73,179,83],[176,84,179,86],[176,87,179,100],[178,49,183,54],[178,55,183,57],[178,58,183,61],[178,62,183,63],[168,25,177,26],[168,27,169,29],[186,1,189,7],[186,8,189,8],[186,9,189,11],[184,73,187,80],[184,81,187,81],[182,1,185,7],[182,8,185,8],[182,9,185,11],[184,27,187,31],[184,58,187,67],[197,70,198,100],[195,6,196,8],[195,9,196,11],[190,22,191,49],[192,22,193,49],[188,22,189,49],[188,52,192,57],[188,58,192,67],[192,70,193,100],[202,54,203,67],[206,70,208,100],[204,6,205,8],[204,9,205,11],[204,30,206,41],[204,42,206,53],[204,54,206,67],[203,70,205,100],[201,6,202,8],[201,9,202,11],[201,22,206,29],[202,30,203,41],[202,42,203,53],[197,22,200,29],[197,30,198,41],[197,42,198,53],[197,54,198,67],[198,6,199,8],[198,9,199,11],[199,30,201,41],[199,42,201,53],[199,54,201,67],[210,6,211,8],[210,9,211,11],[213,6,213,8],[213,9,213,11],[212,70,213,100],[209,22,212,29],[209,30,212,45],[209,46,212,48],[209,49,212,64],[209,65,212,67],[210,70,211,100],[207,6,208,8],[207,9,208,11],[207,22,208,29],[207,30,208,48],[207,49,208,67],[245,25,247,43],[245,87,248,89],[248,25,252,25],[248,26,252,43],[248,44,252,44],[233,2,233,3],[234,2,234,3],[225,2,225,3],[227,2,227,3],[229,2,229,3],[223,75,226,83],[253,62,256,70],[253,71,256,79],[253,80,256,88],[257,25,260,26],[257,27,260,32],[257,33,260,35],[257,36,260,44],[257,46,260,50],[253,25,256,26],[253,27,256,32],[253,33,256,35],[253,36,256,44],[253,46,256,50],[253,51,256,61],[261,62,264,70],[261,71,264,79],[261,80,264,88],[265,25,268,26],[265,27,268,32],[265,33,268,35],[265,36,268,44],[265,46,268,50],[265,51,268,61],[265,62,268,70],[261,25,264,26],[261,27,264,32],[261,33,264,35],[261,36,264,44],[261,46,264,50],[261,51,264,61],[257,51,260,61],[257,62,260,70],[257,71,260,79],[257,80,260,88],[269,80,272,88],[273,25,276,26],[273,27,276,32],[273,33,276,35],[273,36,276,44],[273,46,276,50],[273,51,276,61],[273,62,276,70],[273,71,276,79],[273,80,276,88],[265,71,268,79],[265,80,268,88],[269,25,272,26],[269,27,272,32],[269,33,272,35],[269,36,272,44],[269,46,272,50],[269,51,272,61],[269,62,272,70],[269,71,272,79],[285,62,288,70],[285,71,288,79],[285,80,288,88],[289,25,292,26],[289,27,292,32],[289,33,292,35],[289,36,292,44],[289,46,292,50],[289,51,292,61],[289,62,292,70],[285,25,288,26],[285,27,288,32],[285,33,288,35],[285,36,288,44],[285,46,288,50],[285,51,288,61],[277,62,280,70],[277,71,280,79],[277,80,280,88],[281,25,284,26],[281,27,284,32],[281,33,284,35],[281,36,284,44],[277,25,280,26],[277,27,280,32],[277,33,280,35],[277,36,280,44],[277,46,280,50],[277,51,280,61],[293,80,296,88],[297,25,300,26],[297,27,300,32],[297,33,300,35],[297,36,300,44],[297,46,300,50],[297,51,300,61],[297,62,300,70],[297,71,300,79],[297,80,300,88],[289,71,292,79],[289,80,292,88],[293,25,296,26],[293,27,296,32],[293,33,296,35],[293,36,296,44],[293,46,296,50],[293,51,296,61],[293,62,296,70],[293,71,296,79],[311,46,314,50],[311,51,314,61],[311,62,314,75],[311,76,314,88],[315,25,319,31],[315,32,319,44],[315,46,319,50],[315,51,319,61],[315,74,319,75],[301,62,304,70],[301,71,304,79],[301,80,304,88],[305,25,309,33],[305,34,309,44],[305,71,308,79],[305,80,308,88],[310,25,314,33],[310,34,314,44],[301,25,304,26],[301,27,304,32],[301,33,304,35],[301,36,304,44],[301,46,304,50],[301,51,304,61],[331,25,333,64],[334,25,337,34],[334,35,337,45],[334,46,337,55],[334,56,335,66],[325,25,329,31],[325,32,329,44],[325,46,329,50],[325,51,329,61],[325,76,329,88],[315,76,319,86],[315,87,319,88],[320,25,324,31],[320,32,324,44],[320,46,324,50],[320,51,324,61],[320,76,324,88],[338,79,341,86],[338,87,341,88],[342,30,345,34],[342,35,345,45],[342,46,345,55],[342,56,345,66],[342,67,345,76],[342,77,345,78],[342,79,345,86],[342,87,345,88],[334,77,335,88],[336,56,337,66],[336,77,337,88],[338,25,345,29],[338,30,341,34],[338,35,341,45],[338,46,341,55],[338,56,341,66],[338,67,341,76],[338,77,341,78],[356,25,358,42],[356,75,358,87],[359,25,368,26],[359,27,360,29],[359,30,360,41],[359,42,364,43],[359,44,364,47],[359,48,364,49],[359,50,364,53],[359,54,364,58],[346,79,349,86],[346,87,349,88],[350,25,351,63],[350,64,353,76],[350,77,353,88],[352,25,353,58],[346,25,349,34],[346,35,349,45],[346,46,349,55],[346,56,349,66],[346,67,349,76],[346,77,349,78],[365,54,368,56],[365,57,368,62],[369,25,378,26],[369,27,370,29],[369,30,370,41],[369,42,374,43],[369,44,374,47],[369,48,374,49],[369,50,374,53],[359,59,364,63],[359,75,362,79],[359,80,362,83],[359,84,362,88],[361,27,364,29],[361,30,364,41],[363,75,368,79],[363,80,368,88],[365,27,368,29],[375,54,378,56],[375,57,378,62],[377,75,384,79],[377,80,380,88],[379,25,388,26],[379,27,380,29],[379,30,380,41],[379,42,384,43],[379,44,384,47],[369,54,374,58],[369,59,374,63],[369,75,376,77],[369,78,372,88],[371,27,374,29],[371,30,374,41],[373,78,376,86],[373,87,376,88],[375,27,378,29],[420,51,423,51],[405,30,408,41],[409,25,414,26],[397,72,402,78],[403,72,408,78],[409,72,414,78],[397,79,402,80],[397,25,402,26],[397,27,398,29],[397,30,398,41],[397,42,402,44],[381,80,384,88],[385,27,388,29],[385,54,388,56],[385,57,388,62],[385,75,388,88],[379,48,384,49],[379,50,384,53],[379,54,384,58],[379,59,384,63],[381,27,384,29],[381,30,384,41],[448,62,455,66],[448,67,455,68],[448,69,455,73],[448,74,455,88],[452,25,455,27],[452,28,455,39],[445,25,447,61],[448,25,451,27],[448,28,451,39],[448,40,455,41],[448,42,455,45],[448,46,455,47],[448,48,455,51],[448,52,455,56],[448,57,455,61],[424,41,427,51],[428,25,435,32],[428,33,431,40],[428,41,431,51],[432,33,435,40],[432,41,435,51],[223,28,224,38],[225,28,226,38],[214,70,216,100],[199,70,200,100],[194,70,195,100],[334,67,337,76],[201,70,202,100],[219,49,220,62],[221,41,222,67],[217,41,218,69],[456,25,459,27],[465,46,466,66],[409,27,410,29],[409,30,410,41],[409,42,414,44],[399,27,402,29],[399,30,402,41],[403,25,408,26],[403,27,404,29],[403,30,404,41],[403,42,408,44],[403,69,408,71],[405,27,408,29],[389,30,392,48],[389,49,392,58],[389,59,392,64],[394,25,396,47],[403,79,408,80],[409,79,414,80],[397,81,402,88],[403,81,408,88],[409,81,414,88],[125,64,127,67],[128,64,130,67],[135,64,137,67],[138,64,140,67],[145,64,147,67],[148,64,150,67],[436,25,443,51],[397,69,402,71],[409,69,414,71],[308,46,310,69],[184,82,187,83],[180,73,183,83],[136,70,191,72],[417,25,419,39],[420,25,423,40],[424,25,427,40],[282,46,284,61],[250,46,252,67],[188,73,191,83],[188,84,191,86],[188,87,191,100],[125,62,127,63],[128,62,130,63],[155,23,156,64],[411,27,414,29],[411,30,414,41],[420,41,423,50]]}
[]
["2019-01-01",null,null,null,null,null,null,null,null,null,null,null,null,null,null,null,null,null,null,null,null,null,null,null,null,null,null,null,null,null,null,null,null,null,null,null,null,null,null,null,null,null,null,null,null,null,null,null,null,null,null,null,null,null,null,null,null,null,null,null,null,null,null,null,null,null,null,null,null,null,null,null,null,null,null,null,null,null,null,null,null,null,null,null,null,null,null,null,null,null,null,null,null,null,null,null,null,null,"表"]
[]
[null,null,null,null,null,null,null,null,null,null,null,null,null,null,null,null,null,null,null,null,null,null,null,null,null,null,null,null,null,null,null,"令和",null,null,null,null,null,null,8,null,null,null,"年度分",null,null,null,null,null,null,"村民税",null,null,null,null,null,null,null,null,null,null,null,null,"　申 告 書"]
[null,null,null,null,null,null,null,null,null,null,null,null,null,null,null,"この申告書を提出した方は事業税の申告書を提出する必要がありません。",null,"分離課税に係る所得等のある方は、「村民税・都民税申告書（分離課税等用）をあわせて提出してください。",null,null,null,null,null,null,null,null,null,null,null,null,null,null,null,null,null,null,null,null,null,null,null,null,null,null,null,null,null,null,null,null,null,null,null,null,null,null,null,null,null,null,null,null,null,null,null,null,null,null,null,null,null,null,null,null,null,null,null,null,"整 理 番 号"]
[null,null,null,null,null,null,null,null,null,null,null,null,null,null,null,null,null,null,null,null,null,null,null,null,null,null,null,null,null,null,null,null,null,null,null,null,null,null,null,null,null,null,null,null,null,null,null,null,null,"都民税",null,null,null,null,null,null,null,null,null,null,null,null,null,null,null,null,null,null,null,null,null,null,null,null,null,null,null,null,null,1]
[]
[]
[null,null,null,null,null,null,null,null,null,null,null,null,null,null,null,null,null,null,null,null,null,null,null,null,null,null,null,null,null,null,null,null,null,null,"現　住　所",null,null,null,null,null,null,null,null,null,"東京都新島村",null,null,null,null,null,null,null,null,null,null,null,{"$f":"#REF!","v":{"$error":"#REF!"}},null,null,null,null,null,null,null,null,null,null,null,null,null,null,null,null,null,null,null,null,null,"業種又は職業"]
[]
[]
[]
[]
[null,null,null,null,null,null,null,null,null,null,null,null,null,null,null,null,null,null,null,null,null,null,null,"新島村長様",null,null,null,null,null,null,null,null,null,null,"1月1日現在",null,null,null,null,null,null,null,null,null,"東京都新島村",null,null,null,null,null,null,null,null,null,null,null,{"$f":"BE9","v":{"$error":"#REF!"}},null,null,null,null,null,null,null,null,null,null,null,null,null,null,null,null,null,null,null,null,null,"電 話 番 号"]
[]
[]
[null,null,null,null,null,null,null,null,null,null,null,null,null,null,null,null,null,null,null,null,null,null,null,null,null,null,null,null,null,null,null,null,null,null,"の   住   所"]
[]
[null,null,null,null,null,null,null,null,null,null,null,null,null,null,null,null,null,null,null,null,null,null,null,null,null,null,null,null,null,null,null,null,null,null,"フ  リ  ガ  ナ",null,null,null,null,null,null,null,null,null,{"$f":"PHONETIC(#REF!)","v":{"$error":"#REF!"}},null,null,null,null,null,null,null,null,null,null,null,null,null,null,null,null,null,null,null,null,null,null,null,null,null,"個人番号"]
[]
[]
[null,null,null,null,null,null,null,null,null,null,null,null,null,null,null,null,null,null,null,null,null,null,"提出年月日",null,null,null,null,null,null,null,null,null,null,null,"氏　　　名",null,null,null,null,null,null,null,null,null,{"$f":"#REF!","v":{"$error":"#REF!"}}]
[]
[null,null,null,null,null,null,null,null,null,null,null,null,null,null,null,null,null,null,null,null,null,null,"年",null,null,null,"月",null,null,null,"日"]
[null,null,null,null,null,null,null,null,null,null,null,null,null,null,null,null,null,null,null,null,null,null,null,null,null,null,null,null,null,null,null,null,null,null,null,null,null,null,null,null,null,null,null,null,null,null,null,null,null,null,null,null,null,null,null,null,null,null,null,null,null,null,null,null,null,null,null,null,null,null,null,null,null,null,null,null,null,null,null,null,null,null,null,1]
[]
[null,null,null,null,null,null,null,null,null,null,null,null,null,null,null,null,null,null,null,null,null,null,null,null,null,null,null,null,null,null,null,null,null,null,"生 年\n月 日",null,null,null,null,"　明・大・昭\n　平・令",null,null,null,null,"・　　・　　",null,null,null,null,null,null,null,null,null,null,"世帯主\nの氏名",null,null,null,null,{"$f":"AS22","v":{"$error":"#REF!"}},null,null,null,null,null,null,null,null,null,null,null,"続柄"]
[]
[]
[]
[]
[null,null,null,null,null,null,null,null,null,null,null,null,null,null,null,null,null,null,null,null,null,null,"３ 所得から差し引かれる金額に関する事項"]
[]
[]
[null,null,null,null,null,null,null,null,null,null,null,null,null,null,null,null,null,null,null,null,null,null,"　⑬",null,null,null,null,null,null,null,"社 会 保 険 の 種 類",null,null,null,null,null,null,null,null,null,null,null,null,null,null,null,null,null,null,"支 払 っ た 保 険 料",null,null,null,null,null,null,null,null,null,null,null,null,null,null,null,null,null,null,null,null,"１　収　入　金　額　等",null,null,"事業",null,"営　業　等",null,null,null,null,null,null,null,null,"ア",null,null,null,null,null,null,null,null,null,null,null,null,null,null,"円"]
[]
[null,null,null,null,null,null,null,null,null,null,null,null,null,null,null,null,null,null,null,null,null,null,"社会保険料\n控　　　除",null,null,null,null,null,null,null,null,null,null,null,null,null,null,null,null,null,null,null,null,null,null,null,null,null,null,null,null,null,null,null,null,null,null,null,null,null,null,null,null,null,null,null,"円"]
[]
[]
[null,null,null,null,null,null,null,null,null,null,null,null,null,null,null,null,null,null,null,null,null,null,null,null,null,null,null,null,null,null,null,null,null,null,null,null,null,null,null,null,null,null,null,null,null,null,null,null,null,null,null,null,null,null,null,null,null,null,null,null,null,null,null,null,null,null,null,null,null,null,null,null,null,null,null,"農　　業",null,null,null,null,null,null,null,null,"イ"]
[]
[]
[]
[]
[null,null,null,null,null,null,null,null,null,null,null,null,null,null,null,null,null,null,null,null,null,null,null,null,null,null,null,null,null,null,null,null,null,null,null,null,null,null,null,null,null,null,null,null,null,null,null,null,null,null,null,null,null,null,null,null,null,null,null,null,null,null,null,null,null,null,null,null,null,null,null,null,null,"不　動　産",null,null,null,null,null,null,null,null,null,null,"ウ"]
[]
[]
[null,null,null,null,null,null,null,null,null,null,null,null,null,null,null,null,null,null,null,null,null,null,null,null,null,null,null,null,null,null,"合　　　　　　計",null,null,null,null,null,null,null,null,null,null,null,null,null,null,null,null,null,null,null,null,null,null,null,null,null,null,null,null,null,null,null,null,null,null,null,null,null,null,null,null,null,null,"利　　　子",null,null,null,null,null,null,null,null,null,null,"エ"]
[]
[]
[]
[null,null,null,null,null,null,null,null,null,null,null,null,null,null,null,null,null,null,null,null,null,null,"  ⑮　 　",null,null,null,null,null,null,null,"新生命保険料の計",null,null,null,null,null,null,null,null,null,null,null,null,null,null,null,null,null,null,"旧生命保険料の計",null,null,null,null,null,null,null,null,null,null,null,null,null,null,null,null,null,null,null,null,null,null,null,"配　　　当",null,null,null,null,null,null,null,null,null,null,"オ"]
[]
[null,null,null,null,null,null,null,null,null,null,null,null,null,null,null,null,null,null,null,null,null,null,null,null,null,null,null,null,null,null,null,null,null,null,null,null,null,null,null,null,null,null,null,null,null,null,null,"円",null,null,null,null,null,null,null,null,null,null,null,null,null,null,null,null,null,null,"円"]
[null,null,null,null,null,null,null,null,null,null,null,null,null,null,null,null,null,null,null,null,null,null,"生命保険料\n控 　 　除"]
[null,null,null,null,null,null,null,null,null,null,null,null,null,null,null,null,null,null,null,null,null,null,null,null,null,null,null,null,null,null,null,null,null,null,null,null,null,null,null,null,null,null,null,null,null,null,null,null,null,null,null,null,null,null,null,null,null,null,null,null,null,null,null,null,null,null,null,null,null,null,null,null,null,"給　　　与",null,null,null,null,null,null,null,null,null,null,"カ"]
[]
[null,null,null,null,null,null,null,null,null,null,null,null,null,null,null,null,null,null,null,null,null,null,null,null,null,null,null,null,null,null,"新個人年金保険料の計",null,null,null,null,null,null,null,null,null,null,null,null,null,null,null,null,null,null,"旧個人年金保険料の計"]
[]
[null,null,null,null,null,null,null,null,null,null,null,null,null,null,null,null,null,null,null,null,null,null,null,null,null,null,null,null,null,null,null,null,null,null,null,null,null,null,null,null,null,null,null,null,null,null,null,"円",null,null,null,null,null,null,null,null,null,null,null,null,null,null,null,null,null,null,"円",null,null,null,null,null,null,"雑",null,"公的年金等",null,null,null,null,null,null,null,null,"キ"]
[]
[]
[]
[null,null,null,null,null,null,null,null,null,null,null,null,null,null,null,null,null,null,null,null,null,null,null,null,null,null,null,null,null,null,"介護医療保険料の計",null,null,null,null,null,null,null,null,null,null,null,null,null,null,null,null,null,null,null,null,null,null,null,null,null,null,null,null,null,null,null,null,null,null,null,null,null,null,null,null,null,null,null,null,"業　務",null,null,null,null,null,null,null,null,"ク"]
[]
[null,null,null,null,null,null,null,null,null,null,null,null,null,null,null,null,null,null,null,null,null,null,null,null,null,null,null,null,null,null,null,null,null,null,null,null,null,null,null,null,null,null,null,null,null,null,null,"円"]
[]
[null,null,null,null,null,null,null,null,null,null,null,null,null,null,null,null,null,null,null,null,null,null,null,null,null,null,null,null,null,null,null,null,null,null,null,null,null,null,null,null,null,null,null,null,null,null,null,null,null,null,null,null,null,null,null,null,null,null,null,null,null,null,null,null,null,null,null,null,null,null,null,null,null,null,null,"その他",null,null,null,null,null,null,null,null,"ケ"]
[]
[null,null,null,null,null,null,null,null,null,null,null,null,null,null,null,null,null,null,null,null,null,null,"  ⑯　地震保\n　　険料控除",null,null,null,null,null,null,null,"地震保険料の計",null,null,null,null,null,null,null,null,null,null,null,null,null,null,null,null,null,null,"旧長期損害保険料の計"]
[]
[null,null,null,null,null,null,null,null,null,null,null,null,null,null,null,null,null,null,null,null,null,null,null,null,null,null,null,null,null,null,null,null,null,null,null,null,null,null,null,null,null,null,null,null,null,null,null,null,null,null,null,null,null,null,null,null,null,null,null,null,null,null,null,null,null,null,null,null,null,null,null,null,null,"総",null,"短    期",null,null,null,null,null,null,null,null,"コ"]
[null,null,null,null,null,null,null,null,null,null,null,null,null,null,null,null,null,null,null,null,null,null,null,null,null,null,null,null,null,null,null,null,null,null,null,null,null,null,null,null,null,null,null,null,null,null,null,"円",null,null,null,null,null,null,null,null,null,null,null,null,null,null,null,null,null,null,"円"]
[]
[null,null,null,null,null,null,null,null,null,null,null,null,null,null,null,null,null,null,null,null,null,null,null,null,null,null,null,null,null,null,null,null,null,null,null,null,null,null,null,null,null,null,null,null,null,null,null,null,null,null,null,null,null,null,null,null,null,null,null,null,null,null,null,null,null,null,null,null,null,null,null,null,null,"合"]
[]
[null,null,null,null,null,null,null,null,null,null,null,null,null,null,null,null,null,null,null,null,null,null,"　⑰～⑲",null,null,null,null,null,null,null," ⑰　　□　寡婦控除",null,null,null,null,null,null,null,null,null,null,null,null,null,"⑱",null,null,null,null,null,null,null,null," ⑲　□　勤労学生控除　",null,null,null,null,null,null,null,null,null,null,null,null,null,null,null,null,null,null,null,"譲",null,"長    期",null,null,null,null,null,null,null,null,"サ"]
[]
[]
[null,null,null,null,null,null,null,null,null,null,null,null,null,null,null,null,null,null,null,null,null,null,"　　寡婦控除、\n　　ひとり親控除、\n　　勤労学生控除",null,null,null,null,null,null,null,"　　□死別　□生死不明\n　　□離婚　□未帰還",null,null,null,null,null,null,null,null,null,null,null,null,null,"□　ひとり親\n　　控　　除",null,null,null,null,null,null,null,null,"（学校名）",null,null,null,null,null,null,null,null,null,null,null,null,null,null,null,null,null,null,null,"渡"]
[]
[null,null,null,null,null,null,null,null,null,null,null,null,null,null,null,null,null,null,null,null,null,null,null,null,null,null,null,null,null,null,null,null,null,null,null,null,null,null,null,null,null,null,null,null,null,null,null,null,null,null,null,null,null,null,null,null,null,null,null,null,null,null,null,null,null,null,null,null,null,null,null,null,null,"一時",null,null,null,null,null,null,null,null,null,null,"シ"]
[]
[]
[null,null,null,null,null,null,null,null,null,null,null,null,null,null,null,null,null,null,null,null,null,null,"  ⑳",null,null,null,null,null,null,null,1,null,"フリガナ",null,null,{"$f":"PHONETIC(AJ87)","v":""},null,null,null,null,null,null,null,null,null,null,null,null,null,null,null,null,null,"障害の\n程度",null,null,null,null,null,null,null,null,null,null,null,null,"級度"]
["確定申告"]
[null,null,null,null,null,null,null,null,null,null,null,null,null,null,null,null,null,null,null,null,null,null,null,null,null,null,null,null,null,null,null,null,"氏名",null,null,null,null,null,null,null,null,null,null,null,null,null,null,null,null,null,null,null,null,null,null,null,null,null,null,null,null,null,null,null,null,null,null,null,null,null,"２　所　得　金　額",null,null,"事",null,"営業等",null,null,null,null,null,null,null,null,"①"]
[]
[{"$f":"BS87","v":"２　所　得　金　額"},"事",null,"営業等",null,null,null,null,"①",{"$f":"CJ87","v":0}]
[null,null,null,null,null,null,null,null,null,null,null,null,null,null,null,null,null,null,null,null,null,null,"障　害　者\n控　　　除"]
[null,null,null,null,null,null,null,null,null,null,null,null,null,null,null,null,null,null,null,null,null,null,null,null,null,null,null,null,null,null,null,null,"個人番号",null,null,null,null,null,null,null,null,null,null,null,null,null,null,null,null,null,null,null,null,null,null,null,null,null,null,null,null,null,null,null,null,null,null,null,null,null,null,null,null,"業",null,"農　　業",null,null,null,null,null,null,null,null,"②"]
[]
[null,"業",null,"農　　業",null,null,null,null,"②",{"$f":"CJ91","v":0}]
[]
[null,null,null,null,null,null,null,null,null,null,null,null,null,null,null,null,null,null,null,null,null,null,null,null,null,null,null,null,null,null,2,null,"フリガナ",null,null,{"$f":"PHONETIC(AJ97)","v":""},null,null,null,null,null,null,null,null,null,null,null,null,null,null,null,null,null,"障害の\n程度",null,null,null,null,null,null,null,null,null,null,null,null,"級度"]
[null,null,null,null,null,null,null,null,null,null,null,null,null,null,null,null,null,null,null,null,null,null,null,null,null,null,null,null,null,null,null,null,null,null,null,null,null,null,null,null,null,null,null,null,null,null,null,null,null,null,null,null,null,null,null,null,null,null,null,null,null,null,null,null,null,null,null,null,null,null,null,null,null,"不動産",null,null,null,null,null,null,null,null,null,null,"③"]
[null,null,null,null,null,null,null,null,null,null,null,null,null,null,null,null,null,null,null,null,null,null,null,null,null,null,null,null,null,null,null,null,"氏名"]
[null,"不動産",null,null,null,null,null,null,"③",{"$f":"CJ96","v":0}]
[]
[null,null,null,null,null,null,null,null,null,null,null,null,null,null,null,null,null,null,null,null,null,null,null,null,null,null,null,null,null,null,null,null,null,null,null,null,null,null,null,null,null,null,null,null,null,null,null,null,null,null,null,null,null,null,null,null,null,null,null,null,null,null,null,null,null,null,null,null,null,null,null,null,null,"利　　　子",null,null,null,null,null,null,null,null,null,null,"④"]
[null,null,null,null,null,null,null,null,null,null,null,null,null,null,null,null,null,null,null,null,null,null,null,null,null,null,null,null,null,null,null,null,"個人番号"]
[null,"利　　　子",null,null,null,null,null,null,"④",{"$f":"CJ100","v":0}]
[]
[null,null,null,null,null,null,null,null,null,null,null,null,null,null,null,null,null,null,null,null,null,null,null,null,null,null,null,null,null,null,null,null,null,null,null,null,null,null,null,null,null,null,null,null,null,null,null,null,null,null,null,null,null,null,null,null,null,null,null,null,null,null,null,null,null,null,null,null,null,null,null,null,null,"配　　　当",null,null,null,null,null,null,null,null,null,null,"⑤"]
[null,null,null,null,null,null,null,null,null,null,null,null,null,null,null,null,null,null,null,null,null,null,"　㉑ ～ ㉒　",null,null,null,null,null,null,null,"配偶者",null,"フリガナ",null,null,{"$f":"#REF!","v":{"$error":"#REF!"}},null,null,null,null,null,null,null,null,null,null,null,null,null,null,null,null,"生年月日",null,null,null,null,null,"　明・大・昭\n　平・令",null,null,null,"・　　・"]
[null,"配　　　当",null,null,null,null,null,null,"⑤",{"$f":"CJ104","v":0}]
[]
[null,null,null,null,null,null,null,null,null,null,null,null,null,null,null,null,null,null,null,null,null,null,null,null,null,null,null,null,null,null,null,null,"氏名",null,null,{"$f":"IF(#REF!=\"\",\"\",#REF!)","v":{"$error":"#REF!"}},null,null,null,null,null,null,null,null,null,null,null,null,null,null,null,null,"配偶者の合計所得金額",null,null,null,null,null,null,null,null,null,null,null,null,null,"円",null,null,null,null,null,null,"給　　　与",null,null,null,null,null,null,null,null,null,null,"⑥"]
[null,null,null,null,null,null,null,null,null,null,null,null,null,null,null,null,null,null,null,null,null,null,"配偶者控除・\n配偶者特別控除・\n同一生計配偶者"]
[]
[]
[null,null,null,null,null,null,null,null,null,null,null,null,null,null,null,null,null,null,null,null,null,null,null,null,null,null,null,null,null,null,"個人番号",null,null,null,null,null,null,null,null,null,null,null,null,null,null,null,null,null,null,null,null,null,null,null,null,null,null,null,null,null,"□","同一生計配偶者（控除対象配偶者を除く。）",null,null,null,null,null,null,null,null,null,null,null,"雑",null,"公的年金等",null,null,null,null,null,null,null,null,"⑦"]
[]
[]
[]
[null,null,null,null,null,null,null,null,null,null,null,null,{"$f":"IF(BB85=#REF!,#REF!,IF(BB85=#REF!,#REF!,IF(BB85=#REF!,#REF!,0)))","v":{"$error":"#REF!"}},null,null,null,null,null,null,null,null,null,"㉓～㉔",null,null,1,null,"フリガナ",null,null,null,null,null,null,null,null,null,null,null,null,null,null,null,"生年月日",null,"　明・大・昭\n　平・令",null,null,null,"・　　　　・　　",null,null,null,null,null,"同居・\n別居の\n区分",null,null,"□同居\n□別居",null,null,null,"続柄",null,null,null,null,null,null,null,null,null,null,null,null,"業　務",null,null,null,null,null,null,null,null,"⑧"]
[]
[null,"給　　　与",null,null,null,null,null,null,"⑥",{"$f":"CJ116","v":0},null,null,null,null,null,null,null,null,null,null,null,null,null,null,null,null,null,"氏名"]
[null,null,null,null,null,null,null,null,null,null,null,null,null,null,null,null,null,null,null,null,null,null,null,null,null,null,null,null,null,null,null,null,null,null,null,null,null,null,null,null,null,null,null,null,null,null,null,null,null,null,null,null,null,null,null,null,null,null,null,null,null,null,"特親"]
[null,null,null,null,null,null,null,null,null,null,null,null,null,null,null,null,null,null,null,null,null,null,null,null,null,null,null,null,null,null,null,null,null,null,null,null,null,null,null,null,null,null,null,null,null,null,null,null,null,null,null,null,null,null,null,null,null,null,null,null,null,null,null,null,null,null,null,null,null,null,null,null,null,null,null,"その他",null,null,null,null,null,null,null,null,"⑨"]
[null,null,null,null,null,null,null,null,null,null,null,null,null,null,null,null,null,null,null,null,null,null,"扶養控除・特定親族特別控除"]
[null,null,null,null,null,null,null,null,null,null,null,null,null,null,null,null,null,null,null,null,null,null,null,null,null,null,null,"個人番号",null,null,null,null,null,null,null,null,null,null,null,null,null,null,null,null,null,null,null,null,null,null,null,null,null,null,null,null,null,null,"控除額",null,null,null,"万円"]
[]
[null,null,null,null,null,null,null,null,null,null,null,null,null,null,null,null,null,null,null,null,null,null,null,null,null,null,null,null,null,null,null,null,null,null,null,null,null,null,null,null,null,null,null,null,null,null,null,null,null,null,null,null,null,null,null,null,null,null,null,null,null,null,null,null,null,null,null,null,null,null,null,null,null,null,null,"合　　計\n（⑦+⑧+⑨）",null,null,null,null,null,null,null,null,"⑩"]
[]
[null,"雑",null,null,null,"年金",null,null,"⑦",{"$f":"CJ124","v":0},null,null,null,null,null,null,null,null,null,null,null,null,null,null,null,2,null,"フリガナ",null,null,null,null,null,null,null,null,null,null,null,null,null,null,null,"生年月日",null,"　明・大・昭\n　平・令",null,null,null,"・　　　　・　　",null,null,null,null,null,"同居・\n別居の\n区分",null,null,"□同居\n□別居",null,null,null,"続柄"]
[]
[null,null,null,null,null,"シルバー",null,null,null,{"$f":"CJ126","v":0},null,null,null,null,null,null,null,null,null,null,null,null,null,null,null,null,null,"氏名",null,null,null,null,null,null,null,null,null,null,null,null,null,null,null,null,null,null,null,null,null,null,null,null,null,null,null,null,null,null,null,null,null,null,null,null,null,null,null,null,null,null,null,null,null,"総合譲渡・一時",null,null,null,null,null,null,null,null,null,null,"⑪"]
[null,null,null,null,null,null,null,null,null,null,null,null,null,null,null,null,null,null,null,null,null,null,null,null,null,null,null,null,null,null,null,null,null,null,null,null,null,null,null,null,null,null,null,null,null,null,null,null,null,null,null,null,null,null,null,null,null,null,null,null,null,null,"特親"]
[null,"総合譲渡・一時",null,null,null,null,null,null,"⑧",{"$f":"CJ128","v":0},null,null,{"$f":"IF(BB95=#REF!,#REF!,IF(BB95=#REF!,#REF!,IF(BB95=#REF!,#REF!,0)))","v":{"$error":"#REF!"}}]
[]
[null,null,null,null,null,null,null,null,null,null,null,null,null,null,null,null,null,null,null,null,null,null,null,null,null,null,null,"個人番号",null,null,null,null,null,null,null,null,null,null,null,null,null,null,null,null,null,null,null,null,null,null,null,null,null,null,null,null,null,null,"控除額",null,null,null,null,null,null,null,null,null,null,null,null,null,null,"合　　　計",null,null,null,null,null,null,null,null,null,null,"⑫"]
[]
[null,"合　　　計",null,null,null,null,null,null,"⑨",{"$f":"SUM(J89:L133)","v":0}]
[]
[null,null,null,null,null,null,null,null,null,null,null,null,null,null,null,null,null,null,null,"作成税理士",null,null,null,null,null,3,null,"フリガナ",null,null,null,null,null,null,null,null,null,null,null,null,null,null,null,"生年月日",null,"　明・大・昭\n　平・令",null,null,null,"・　　　　・　　",null,null,null,null,null,"同居・\n別居の\n区分",null,null,"□同居\n□別居",null,null,null,"続柄"]
[null,null,null,null,null,null,null,null,null,null,null,null,null,null,null,null,null,null,null,null,null,null,null,null,null,null,null,null,null,null,null,null,null,null,null,null,null,null,null,null,null,null,null,null,null,null,null,null,null,null,null,null,null,null,null,null,null,null,null,null,null,null,null,null,null,null,null,null,null,null,"４　所得から差し引かれる金額",null,null,"社会保険料控除",null,null,null,null,null,null,null,null,null,null,"⑬"]
[null,null,null,null,null,null,null,null,null,null,null,null,null,null,"署　名　押　印",null,"（電話番号）","事務所所在地",null,null,null,null,null,null,null,null,null,"氏名"]
[{"$f":"BS137","v":"４　所得から差し引かれる金額"},"雑損控除",null,null,null,null,null,null,"⑩",{"$f":"CJ137","v":0},null,null,null,null,null,null,null,null,null,null,null,null,null,null,null,null,null,null,null,null,null,null,null,null,null,null,null,null,null,null,null,null,null,null,null,null,null,null,null,null,null,null,null,null,null,null,null,null,null,null,null,null,"特親"]
[]
[null,null,null,null,null,null,null,null,null,null,null,null,null,null,null,null,null,null,null,null,null,null,null,null,null,null,null,null,null,null,null,null,null,null,null,null,null,null,null,null,null,null,null,null,null,null,null,null,null,null,null,null,null,null,null,null,null,null,null,null,null,null,null,null,null,null,null,null,null,null,null,null,null,"小規模企業",null,null,null,null,null,null,null,null,null,null,"⑭"]
[null,null,null,null,null,null,null,null,null,null,null,null,null,null,null,null,null,null,null,null,null,null,null,null,null,null,null,"個人番号",null,null,null,null,null,null,null,null,null,null,null,null,null,null,null,null,null,null,null,null,null,null,null,null,null,null,null,null,null,null,"控除額"]
[null,"医療費控除",null,null,null,null,null,null,"⑪",{"$f":"CJ141","v":0},null,null,null,null,null,null,null,null,null,null,null,null,null,null,null,null,null,null,null,null,null,null,null,null,null,null,null,null,null,null,null,null,null,null,null,null,null,null,null,null,null,null,null,null,null,null,null,null,null,null,null,null,null,null,null,null,null,null,null,null,null,null,null,"共済等掛金控除"]
[]
[null,null,null,null,null,null,null,null,null,null,null,null,null,null,null,null,null,null,null,null,null,null,null,null,null,null,null,null,null,null,null,null,null,null,null,null,null,null,null,null,null,null,null,null,null,null,null,null,null,null,null,null,null,null,null,null,null,null,null,null,null,null,null,null,null,null,null,null,null,null,null,null,null,"生命保険料控除",null,null,null,null,null,null,null,null,null,null,"⑮"]
[null,null,null,null,null,null,null,null,null,null,null,null,null,null,null,null,null,null,null,null,null,null,null,null,null,4,null,"フリガナ",null,null,null,null,null,null,null,null,null,null,null,null,null,null,null,"生年月日",null,"　明・大・昭\n　平・令",null,null,null,"・　　　　・　　",null,null,null,null,null,"同居・\n別居の\n区分",null,null,"□同居\n□別居",null,null,null,"続柄"]
[null,"社会保険料控除",null,null,null,null,null,null,"⑫",{"$f":"CJ145","v":0}]
[null,null,null,null,null,null,null,null,null,null,null,null,null,null,null,null,null,null,null,null,null,null,null,null,null,null,null,"氏名"]
[null,null,null,null,null,null,null,null,null,null,null,null,null,null,null,null,null,null,null,null,null,null,null,null,null,null,null,null,null,null,null,null,null,null,null,null,null,null,null,null,null,null,null,null,null,null,null,null,null,null,null,null,null,null,null,null,null,null,null,null,null,null,"特親",null,null,null,null,null,null,null,null,null,null,"地震保険料控除",null,null,null,null,null,null,null,null,null,null,"⑯"]
[]
[null,"小規模企業",null,null,null,null,null,null,"⑬",{"$f":"CJ149","v":0},null,null,{"$f":"IF(AE118=\"\",0,IF(BD116=#REF!,#REF!,IF(BD116=#REF!,#REF!,IF(BD116=#REF!,#REF!,IF(BD116=#REF!,#REF!,0)))))","v":0}]
[null,null,null,null,null,null,null,null,null,null,null,null,null,null,null,null,null,null,null,null,null,null,null,null,null,null,null,"個人番号",null,null,null,null,null,null,null,null,null,null,null,null,null,null,null,null,null,null,null,null,null,null,null,null,null,null,null,null,null,null,"控除額"]
[null,"共済等掛金控除",null,null,null,null,null,null,null,null,null,null,null,null,null,null,null,null,null,null,null,null,null,null,null,null,null,null,null,null,null,null,null,null,null,null,null,null,null,null,null,null,null,null,null,null,null,null,null,null,null,null,null,null,null,null,null,null,null,null,null,null,null,null,null,null,null,null,null,null,null,null,null,"寡婦、ひとり親控除",null,null,null,null,null,null,null,null,null,null,"⑰～"]
[]
[null,"生命保険料控除",null,null,null,null,null,null,"⑭",{"$f":"IF(#REF!+#REF!+#REF!>120000,120000,#REF!+#REF!+#REF!)","v":{"$error":"#REF!"}},null,null,null,null,null,null,null,null,null,null,null,null,null,null,null,null,null,null,null,null,null,null,null,null,null,null,null,null,null,null,null,null,null,null,null,null,null,null,null,null,null,null,null,null,null,null,null,null,null,null,null,null,null,null,null,null,null,null,null,null,null,null,null,null,null,null,null,null,null,null,null,null,null,null,"⑱"]
[null,null,null,null,null,null,null,null,null,null,null,null,null,null,null,null,null,null,null,null,null,null,null,"当該親族が特定親族である場合には、「特親」欄に〇を記入してください。"]
[null,null,null,null,null,null,null,null,null,null,null,null,null,null,null,null,null,null,null,null,null,null,null,null,null,null,null,null,null,null,null,null,null,null,null,null,null,null,null,null,null,null,null,null,null,null,null,null,null,null,null,null,null,null,null,null,null,null,null,null,null,null,null,null,null,null,null,null,null,null,null,null,null,"勤労学生、\n障害者控除",null,null,null,null,null,null,null,null,null,null,"⑲～"]
[]
[null,"地震保険料控除",null,null,null,null,null,null,"⑮",{"$f":"#REF!","v":{"$error":"#REF!"}},null,null,null,null,null,null,null,null,null,null,null,null,"16歳未満の扶養親族\n（控除対象外）",null,null,1,null,"フリガナ",null,null,null,null,null,null,null,null,null,null,null,null,null,null,null,"生年月日",null,"　平・令",null,null,null,"・　　　　・　　",null,null,null,null,null,"同居・\n別居の\n区分",null,null,"□同居\n□別居",null,null,null,"続柄",null,null,null,null,null,null,null,null,null,null,null,null,null,null,null,null,null,null,null,null,null,"⑳"]
[]
[null,null,null,null,null,null,null,null,null,null,null,null,{"$f":"IF(AE128=\"\",0,IF(BD126=#REF!,#REF!,IF(BD126=#REF!,#REF!,IF(BD126=#REF!,#REF!,IF(BD126=#REF!,#REF!,0)))))","v":0},null,null,null,null,null,null,null,null,null,null,null,null,null,null,"氏名",null,null,null,null,null,null,null,null,null,null,null,null,null,null,null,null,null,null,null,null,null,null,null,null,null,null,null,null,null,null,null,null,null,null,null,null,null,null,null,null,null,null,null,null,null,"配偶者（特別）控除",null,null,null,null,null,null,null,null,null,null,"㉑～"]
[]
[null,"寡婦(寡夫)控除",null,null,null,null,null,null,"⑯",{"$f":"#REF!+#REF!+#REF!","v":{"$error":"#REF!"}},null,null,null,null,null,null,null,null,null,null,null,null,null,null,null,null,null,null,null,null,null,null,null,null,null,null,null,null,null,null,null,null,null,null,null,null,null,null,null,null,null,null,null,null,null,null,null,null,null,null,null,null,null,null,null,null,null,null,null,null,null,null,null,null,null,null,null,null,null,null,null,null,null,null,"㉒"]
[]
[null,null,null,null,null,null,null,null,null,null,null,null,null,null,null,null,null,null,null,null,null,null,null,null,null,null,null,"個人番号",null,null,null,null,null,null,null,null,null,null,null,null,null,null,null,null,null,null,null,null,null,null,null,null,null,null,null,null,null,null,null,null,null,null,null,null,null,null,null,null,null,null,null,null,null,"扶養控除",null,null,null,null,null,null,null,null,null,null,"㉓"]
[]
[null,"勤労学生、\n障害者控除",null,null,null,null,null,null,"⑰～",{"$f":"#REF!+M116+M130","v":{"$error":"#REF!"}}]
[]
[null,null,null,null,null,null,null,null,"⑱",null,null,null,null,null,null,null,null,null,null,null,null,null,null,null,null,2,null,"フリガナ",null,null,null,null,null,null,null,null,null,null,null,null,null,null,null,"生年月日",null,"　平・令",null,null,null,"・　　　　・　　",null,null,null,null,null,"同居・\n別居の\n区分",null,null,"□同居\n□別居",null,null,null,"続柄",null,null,null,null,null,null,null,null,null,null,"特定親族特別控除",null,null,null,null,null,null,null,null,null,null,"㉔"]
[]
[null,"配偶者控除",null,null,null,null,null,null,"⑲",{"$f":"IF(AJ108=\"\",0,IF(BH108<380001,380000,\"\"))","v":{"$error":"#REF!"}},null,null,{"$f":"IF(AE138=\"\",0,IF(BD136=#REF!,#REF!,IF(BD136=#REF!,#REF!,IF(BD136=#REF!,#REF!,IF(BD136=#REF!,#REF!,0)))))","v":0},null,null,null,null,null,null,null,null,null,null,null,null,null,null,"氏名"]
[]
[null,null,null,null,null,null,null,null,null,null,null,null,null,null,null,null,null,null,null,null,null,null,null,null,null,null,null,null,null,null,null,null,null,null,null,null,null,null,null,null,null,null,null,null,null,null,null,null,null,null,null,null,null,null,null,null,null,null,null,null,null,null,null,null,null,null,null,null,null,null,null,null,null,"基礎控除",null,null,null,null,null,null,null,null,null,null,"㉕"]
[]
[null,"配偶者特別控除",null,null,null,null,null,null,"⑳",{"$f":"IF(BH108<380000,0,IF(BH108<400000,380000,IF(BH108<450000,360000,IF(BH108<500000,310000,IF(BH108<550000,260000,IF(BH108<600000,210000,IF(BH108<650000,160000,IF(BH108<700000,110000,IF(BH108<750000,60000,IF(BH108<760000,30000,0))))))))))","v":0},null,null,null,null,null,null,null,null,null,null,null,null,null,null,null,null,null,"個人番号"]
[]
[null,null,null,null,null,null,null,null,null,null,null,null,null,null,null,null,null,null,null,null,null,null,null,null,null,null,null,null,null,null,null,null,null,null,null,null,null,null,null,null,null,null,null,null,null,null,null,null,null,null,null,null,null,null,null,null,null,null,null,null,null,null,null,null,null,null,null,null,null,null,null,null,null,"⑬から㉕までの計",null,null,null,null,null,null,null,null,null,null,"㉖"]
[]
[null,"扶養控除",null,null,null,null,null,null,"㉑",{"$f":"M151+M161+M171+M181","v":0},null,null,null,null,null,null,null,null,null,null,null,null,null,null,null,3,null,"フリガナ",null,null,null,null,null,null,null,null,null,null,null,null,null,null,null,"生年月日",null,"　平・令",null,null,null,"・　　　　・　　",null,null,null,null,null,"同居・\n別居の\n区分",null,null,"□同居\n□別居",null,null,null,"続柄"]
[]
[null,null,null,null,null,null,null,null,null,null,null,null,{"$f":"IF(AE148=\"\",0,IF(BD146=#REF!,#REF!,IF(BD146=#REF!,#REF!,IF(BD146=#REF!,#REF!,IF(BD146=#REF!,#REF!,0)))))","v":0},null,null,null,null,null,null,null,null,null,null,null,null,null,null,"氏名",null,null,null,null,null,null,null,null,null,null,null,null,null,null,null,null,null,null,null,null,null,null,null,null,null,null,null,null,null,null,null,null,null,null,null,null,null,null,null,null,null,null,null,null,null,"雑損控除",null,null,null,null,null,null,null,null,null,null,"㉗"]
[]
[null,"基礎控除",null,null,null,null,null,null,"㉒",380000]
[]
[null,null,null,null,null,null,null,null,null,null,null,null,null,null,null,null,null,null,null,null,null,null,null,null,null,null,null,"個人番号",null,null,null,null,null,null,null,null,null,null,null,null,null,null,null,null,null,null,null,null,null,null,null,null,null,null,null,null,null,null,null,null,null,null,null,null,null,null,null,null,null,null,null,null,null,"医療費控除",null,null,null,null,null,null,null,"区分",{"$f":"IF(#REF!=\"はい\",1,\"\")","v":{"$error":"#REF!"}},null,"㉘"]
[]
[null,"合計",null,null,null,null,null,null,"㉓",{"$f":"SUM(J139:L186)","v":{"$error":"#REF!"}}]
[]
[null,null,null,null,null,null,null,null,null,null,null,null,null,null,null,null,null,null,null,null,null,null,"　　別居の扶養親族等がいる場合には、裏面「１２」に",null,null,null,null,null,null,null,null,null,null,null,null,null,null,null,null,null,null,null,null,null,null,null,null,null,null,null,null,null,"扶養控除\n額の合計",null,null,null,null,null,null,null,null,null,null,null,null,null,null,null,null,null,null,null,null,"合計\n（㉖+㉗+㉘）",null,null,null,null,null,null,null,null,null,null,"㉙"]
[]
[null,null,null,null,null,null,null,null,null,null,null,null,null,null,null,null,null,null,null,null,null,null,"　  氏名、個人番号及び国外居住者である場合は区分を"]
[]
[null,null,null,null,null,null,null,null,null,null,null,null,null,null,null,null,null,null,null,null,null,null,"　  記入してください。",null,null,null,null,null,null,null,null,null,null,null,null,null,null,null,null,null,null,null,null,null,null,null,null,null,null,null,null,null,null,null,null,null,null,null,null,null,null,null,null,null,null,null,null,null,null,null,"地方税法附則第4条の5の規定の適用を選択する場合には、"]
[]
[null,null,null,null,null,null,null,null,null,null,null,null,null,null,null,null,null,null,null,null,null,null,null,null,null,null,null,null,null,null,null,null,null,null,null,null,null,null,null,null,null,null,null,null,null,null,null,null,null,null,null,null,null,null,null,null,null,null,null,null,null,null,null,null,null,null,null,null,null,null,"「医療費控除」欄の「区分」の□に「1」と記入してください。"]
[null,null,null,null,null,null,"課税される所得金額",null,null,{"$f":"ROUNDDOWN(J134-J187,-3)","v":{"$error":"#REF!"}}]
[]
[null,null,null,null,null,null,null,null,null,null,null,null,null,null,null,null,null,null,null,null,null,null,"　㉗",null,null,null,null,null,null,null,"損 害 の 原 因",null,null,null,null,null,null,null,null,null,null,null,"損害年月日",null,null,null,null,null,null,null,null,null,null,null,"損害を受けた資産の種類",null,null,null,null,null,null,null,null,null,null,null,null,null,null,null,{"$f":"\"５　給与・公的年金等に係る所得以外（令和\"&AM4&\"年4月1日\"","v":"５　給与・公的年金等に係る所得以外（令和8年4月1日"}]
[null,null,null,null,null,null,"上記に対する税額",null,null,{"$f":"C230","v":{"$error":"#REF!"}}]
[null,null,null,null,null,null,null,null,null,null,null,null,null,null,null,null,null,null,null,null,null,null,null,null,null,null,null,null,null,null,null,null,null,null,null,null,null,null,null,null,null,null,"・　　・",null,null,null,null,null,null,null,null,null,null,null,null,null,null,null,null,null,null,null,null,null,null,null,null,null,null,null,"　　において65歳未満の方は給与所得以外）の市民税・"]
[]
[null,null,null,null,null,null,"配当控除",null,null,null,null,null,null,null,null,null,null,null,null,null,null,null,"雑 損 控 除 ",null,null,null,null,null,null,null,null,null,null,null,null,null,null,null,null,null,null,null,null,null,null,null,null,null,null,null,null,null,null,null,null,null,null,null,null,null,null,null,null,null,null,null,null,null,null,null,"　　県民税の納税方法"]
[null,null,null,null,null,null,null,null,null,null,null,null,null,null,null,null,null,null,null,null,null,null,null,null,null,null,null,null,null,null,"損  害  金  額",null,null,null,null,null,null,null,null,null,null,null,"保険金などで補填される金額",null,null,null,null,null,null,null,null,null,null,null,"差引損失額のうち災害関連支出の金額"]
[null,null,null,null,null,null,null,null,null,null,null,null,null,null,null,null,null,null,null,null,null,null,null,null,null,null,null,null,null,null,null,null,null,null,null,null,null,null,null,null,null,null,null,null,null,null,null,null,null,null,null,null,null,null,null,null,null,null,null,null,null,null,null,null,null,null,null,null,null,null,"　　□　給与から差引き（特別徴収）"]
[null,null,null,null,null,null,"寄付金控除",null,null,null,null,null,null,null,null,null,null,null,null,null,null,null,null,null,null,null,null,null,null,null,"円",null,null,null,null,null,null,null,null,null,null,null,"円",null,null,null,null,null,null,null,null,null,null,null,"円"]
[]
[null,null,null,null,null,null,null,null,null,null,null,null,null,null,null,null,null,null,null,null,null,null,null,null,null,null,null,null,null,null,null,null,null,null,null,null,null,null,null,null,null,null,null,null,null,null,null,null,null,null,null,null,null,null,null,null,null,null,null,null,null,null,null,null,null,null,null,null,null,null,"　　□　自分で納付（普通徴収）"]
[null,null,null,null,null,null,"基準所得税額",null,null,{"$f":"J199-J202-J205","v":{"$error":"#REF!"}},null,null,null,null,null,null,null,null,null,null,null,null,"　㉘",null,null,null,null,null,null,null,"支 払 っ た 医 療 費 等",null,null,null,null,null,null,null,null,null,null,null,null,null,null,null,null,null,null,"保険金などで補填される金額"]
[]
[null,null,null,null,null,null,null,null,null,null,null,null,null,null,null,null,null,null,null,null,null,null,"医療費控除",null,null,null,null,null,null,null,{"$f":"#REF!","v":{"$error":"#REF!"}},null,null,null,null,null,null,null,null,null,null,null,null,null,null,null,"円",null,null,{"$f":"#REF!","v":{"$error":"#REF!"}},null,null,null,null,null,null,null,null,null,null,null,null,null,null,null,"円"]
[null,null,null,null,null,null,"復興特別",null,null,{"$f":"ROUNDDOWN(J208*2.1/100,0)","v":{"$error":"#REF!"}},null,null,null,null,null,null,null,null,null,null,null,null,null,null,null,null,null,null,null,null,null,null,null,null,null,null,null,null,null,null,null,null,null,null,null,null,null,null,null,null,null,null,null,null,null,null,null,null,null,null,null,null,null,null,null,null,null,null,null,null,"「個人番号」欄には、個人番号（行政手続における特定の個人"]
[]
[null,null,null,null,null,null,null,null,null,null,null,null,null,null,null,null,null,null,null,null,null,null,null,null,null,null,null,null,null,null,null,null,null,null,null,null,null,null,null,null,null,null,null,null,null,null,null,null,null,null,null,null,null,null,null,null,null,null,null,null,null,null,null,null,null,null,null,null,null,null,"を識別するための番号の利用等に関する法律第2条第5項に"]
[null,null,null,null,null,null,"税額",null,null,{"$f":"J208+J211","v":{"$error":"#REF!"}}]
[null,null,null,null,null,null,null,null,null,null,null,null,null,null,null,null,null,null,null,null,null,null,null,null,null,null,null,null,null,null,null,null,null,null,null,null,null,null,null,null,null,null,null,null,null,null,null,null,null,null,null,null,null,null,null,null,null,null,null,null,null,null,null,null,null,null,null,null,null,null,"規定する個人番号をいう。）を記載してください。"]
[]
[]
[null,null,null,null,null,null,null,null,null,null,null,null,null,null,null,null,null,null,null,null,null,null,null,null,null,null,null,null,null,null,null,null,null,null,null,null,null,null,null,null,null,"裏面にも記載する欄がありますから注意してください。"]
[]
[null,null,null,null,null,null,null,null,null,null,null,null,null,null,null,null,null,null,null,null,null,null,null,null,null,null,null,null,null,null,null,null,null,null,null,null,null,null,null,null,null,null,null,null,null,null,null,null,null,"（切り取らないでください。）"]
[]
[null,null,null,null,null,null,null,null,null,null,null,null,null,null,null,null,null,null,null,null,null,null,null,null,null,null,null,null,null,null,null,null,null,null,null,null,null,null,null,null,null,"令和８年度分村民税・都民税申告書受付書"]
[]
[null,null,null,null,null,null,null,null,null,null,null,null,null,null,null,null,null,null,null,null,null,null,null,null,null,null,null,null,"住　　所",null,null,null,null,null,null,null,null,null,null,null,null,null,null,null,null,null,null,null,null,null,null,null,null,null,null,null,null,null,null,null,null,null,null,null,null,null,null,null,null,null,null,null,null,null,null,"受付日付印"]
[]
[null,null,{"$f":"J196","v":{"$error":"#REF!"}},null,null,0,999,0,0,null,null,null,null,null,null,null,null,null,null,null,null,null,null,null,null,null,null,null,"氏　　名"]
[null,null,null,null,null,3300000,6949000,0.2,427500]
[4,null,{"$f":"VLOOKUP($C$226,$F$220:$K$230,A228)","v":{"$error":"#REF!"}},null,null,6950000,8999000,0.23,636000]
[null,null,null,null,null,9000000,17999000,0.33,1536000]
[null,null,{"$f":"C226*#REF!-C228","v":{"$error":"#REF!"}},null,null,18000000,39999000,0.4,2796000]
[null,null,null,null,null,40000000,null,0.45,4796000]
[]
[]
[]
[]
[]
[]
[]
[]
[]
[]
[]
[]
[]
[]
[null,null,null,null,null,null,null,null,null,null,null,null,null,null,null,null,null,null,null,null,null,null,null,null,null,"６ 給与所得の内訳",null,null,null,null,null,null,null,null,null,null,null,null,null,null,null,null,null,null,null,null,null,null,null,null,null,null,null,null,null,null,null,null,null,null,null,null,null,null,null,null,null,null,null,null,null,null,null,null,null,null,null,null,null,null,null,null,null,null,null,null,null,"裏"]
[]
[]
[null,null,null,null,null,null,null,null,null,null,null,null,null,null,null,null,null,null,null,null,null,null,null,null,null,"(","日給などの給与所得のある人で、源泉徴収票のない人は記入してください。",null,null,null,null,null,null,null,null,null,null,null,null,null,null,null,null,null,")"]
[]
[null,null,null,null,null,null,null,null,null,null,null,null,null,null,null,null,null,null,null,null,null,null,null,null,null,null,null,null,null,null,null,null,null,null,null,null,null,null,null,null,null,null,null,null,null,null,"７ 事業・不動産所得に関する事項"]
[]
[]
[null,null,null,null,null,null,null,null,null,null,null,null,null,null,null,null,null,null,null,null,null,null,null,null,null,"月",null,"日給",null,null,null,null,null,"勤務　日数",null,null,"月収",null,null,null,null,null,null,null,null,null,"所得の種類",null,null,null,null,"支払者の「名称」及び\n「法人番号又は所在地」等",null,null,null,null,null,null,null,null,null,null,"収入金額",null,null,null,null,null,null,null,null,"必要経費",null,null,null,null,null,null,null,null,"青色申告特別控除額"]
[]
[]
[]
[null,null,null,null,null,null,null,null,null,null,null,null,null,null,null,null,null,null,null,null,null,null,null,null,null,1,null,"円",null,null,null,null,null,null,null,null,"円",null,null,null,null,null,null,null,null,null,null,null,null,null,null,null,null,null,null,null,null,null,null,null,null,null,"円",null,null,null,null,null,null,null,null,"円",null,null,null,null,null,null,null,null,"円"]
[]
[]
[]
[null,null,null,null,null,null,null,null,null,null,null,null,null,null,null,null,null,null,null,null,null,null,null,null,null,2]
[]
[]
[]
[null,null,null,null,null,null,null,null,null,null,null,null,null,null,null,null,null,null,null,null,null,null,null,null,null,3]
[]
[]
[]
[null,null,null,null,null,null,null,null,null,null,null,null,null,null,null,null,null,null,null,null,null,null,null,null,null,4]
[]
[]
[]
[null,null,null,null,null,null,null,null,null,null,null,null,null,null,null,null,null,null,null,null,null,null,null,null,null,5]
[]
[]
[]
[null,null,null,null,null,null,null,null,null,null,null,null,null,null,null,null,null,null,null,null,null,null,null,null,null,6]
[]
[]
[]
[null,null,null,null,null,null,null,null,null,null,null,null,null,null,null,null,null,null,null,null,null,null,null,null,null,7]
[null,null,null,null,null,null,null,null,null,null,null,null,null,null,null,null,null,null,null,null,null,null,null,null,null,null,null,null,null,null,null,null,null,null,null,null,null,null,null,null,null,null,null,null,null,null,"８ 配当所得に関する事項"]
[]
[]
[null,null,null,null,null,null,null,null,null,null,null,null,null,null,null,null,null,null,null,null,null,null,null,null,null,8,null,null,null,null,null,null,null,null,null,null,null,null,null,null,null,null,null,null,null,null,"配当所得\nの種類",null,null,null,null,"支払者の「名称」及び\n「法人番号又は所在地」等",null,null,null,null,null,null,null,null,null,null,"支払確定年月",null,null,null,null,null,null,null,null,"収入金額",null,null,null,null,null,null,null,null,"必要経費"]
[]
[]
[]
[null,null,null,null,null,null,null,null,null,null,null,null,null,null,null,null,null,null,null,null,null,null,null,null,null,9,null,null,null,null,null,null,null,null,null,null,null,null,null,null,null,null,null,null,null,null,null,null,null,null,null,null,null,null,null,null,null,null,null,null,null,null,"・",null,null,null,null,null,null,null,null,"円",null,null,null,null,null,null,null,null,"円"]
[]
[]
[]
[null,null,null,null,null,null,null,null,null,null,null,null,null,null,null,null,null,null,null,null,null,null,null,null,null,10,null,null,null,null,null,null,null,null,null,null,null,null,null,null,null,null,null,null,null,null,null,null,null,null,null,null,null,null,null,null,null,null,null,null,null,null,"・"]
[]
[]
[]
[null,null,null,null,null,null,null,null,null,null,null,null,null,null,null,null,null,null,null,null,null,null,null,null,null,11,null,null,null,null,null,null,null,null,null,null,null,null,null,null,null,null,null,null,null,null,null,null,null,null,null,null,null,null,null,null,null,null,null,null,null,null,"・"]
[]
[]
[]
[null,null,null,null,null,null,null,null,null,null,null,null,null,null,null,null,null,null,null,null,null,null,null,null,null,12,null,null,null,null,null,null,null,null,null,null,null,null,null,null,null,null,null,null,null,null,null,null,null,null,null,null,null,null,null,null,null,null,null,null,null,null,"・"]
[]
[]
[]
[null,null,null,null,null,null,null,null,null,null,null,null,null,null,null,null,null,null,null,null,null,null,null,null,null,"賞与等",null,null,null,null,null,null,null,null,"円",null,null,null,null,null,null,null,null,null,null,null,null,null,null,null,null,null,null,null,null,null,null,null,null,null,null,null,null,null,null,null,null,null,null,null,null,"国外株式等に係\nる外国所得税額"]
[]
[]
[null,null,null,null,null,null,null,null,null,null,null,null,null,null,null,null,null,null,null,null,null,null,null,null,null,null,null,null,null,null,null,null,null,null,null,null,null,null,null,null,null,null,null,null,null,null,"９ 雑所得（公的年金等以外）に関する事項"]
[]
[null,null,null,null,null,null,null,null,null,null,null,null,null,null,null,null,null,null,null,null,null,null,null,null,null,"合  計"]
[null,null,null,null,null,null,null,null,null,null,null,null,null,null,null,null,null,null,null,null,null,null,null,null,null,null,null,null,null,null,null,null,null,null,null,null,null,null,null,null,null,null,null,null,null,null,"種　目",null,null,null,null,"支払者の「名称」及び\n「法人番号又は所在地」等",null,null,null,null,null,null,null,null,null,null,"収入金額",null,null,null,null,null,null,null,null,null,null,null,null,null,"必要経費"]
[]
[null,null,null,null,null,null,null,null,null,null,null,null,null,null,null,null,null,null,null,null,null,null,null,null,null,null,null,null,null,null,null,null,null,null,null,null,null,null,null,null,null,null,null,null,null,null,null,null,null,null,null,null,null,null,null,null,null,null,null,null,null,null,null,null,null,null,null,null,null,null,null,null,null,null,null,null,null,null,null,null,null,null,null,null,null,null,null,null,null,0]
[]
[null,null,null,null,null,null,null,null,null,null,null,null,null,null,null,null,null,null,null,null,null,null,null,null,null,"法人番号又は勤務先所在地",null,null,null,null,null,null,null,null,null,null,null,null,null,null,null,null,null,null,null,null,null,null,null,null,null,null,null,null,null,null,null,null,null,null,null,null,null,null,null,null,null,null,null,null,null,null,null,null,"円",null,null,null,null,null,null,null,null,null,null,null,null,"円"]
[]
[]
[]
[]
[null,null,null,null,null,null,null,null,null,null,null,null,null,null,null,null,null,null,null,null,null,null,null,null,null,"勤務先名"]
[]
[]
[]
[]
[null,null,null,null,null,null,null,null,null,null,null,null,null,null,null,null,null,null,null,null,null,null,null,null,null,"電話番号"]
[]
[]
[]
[]
[]
[null,null,null,null,null,null,null,null,null,null,null,null,null,null,null,null,null,null,null,null,null,null,null,null,null,"10 総合譲渡・一時所得の所得金額に関する事項"]
[null,null,null,null,null,null,null,null,null,null,null,null,null,null,null,null,null,null,null,null,null,null,null,null,null,null,null,null,null,null,null,null,null,null,null,null,null,null,null,null,null,null,null,null,null,null,null,null,null,null,null,null,null,null,null,null,null,null,null,null,null,null,null,null,null,null,null,null,null,null,null,null,null,null,null,null,null,null,null,null,null,null,null,null,null,null,null,"   "]
[]
[null,null,null,null,null,null,null,null,null,null,null,null,null,null,null,null,null,null,null,null,null,null,null,null,null,null,null,null,null,null,null,null,null,null,null,"収入金額",null,null,null,null,null,null,null,null,null,null,"必要経費",null,null,null,null,null,null,null,null,null,"差引金額",null,null,null,null,null,null,null,null,null,null,"特別控除額",null,null,null,null,null,null,null,null,null,"所得金額"]
[]
[null,null,null,null,null,null,null,null,null,null,null,null,null,null,null,null,null,null,null,null,null,null,null,null,null,null,null,null,null,null,null,null,null,null,null,null,null,null,null,null,null,null,null,null,null,null,null,null,null,null,null,null,null,null,null,null,"（収入金額－必要経費）",null,null,null,null,null,null,null,null,null,null,null,null,null,null,null,null,null,null,null,null,"（差引金額－特別控除額）"]
[]
[null,null,null,null,null,null,null,null,null,null,null,null,null,null,null,null,null,null,null,null,null,null,null,null,null,"総合譲渡",null,null,null,null,"短期",null,null,null,null,"円",null,null,null,null,null,null,null,null,null,null,"円",null,null,null,null,null,null,null,null,null,"円",null,null,null,null,null,null,null,null,null,null,"円",null,null,null,null,null,null,null,null,null,"ｲ",null,null,null,null,null,null,null,null,null,"円"]
[]
[]
[]
[null,null,null,null,null,null,null,null,null,null,null,null,null,null,null,null,null,null,null,null,null,null,null,null,null,null,null,null,null,null,"長期",null,null,null,null,null,null,null,null,null,null,null,null,null,null,null,null,null,null,null,null,null,null,null,null,null,null,null,null,null,null,null,null,null,null,null,null,null,null,null,null,null,null,null,null,null,null,"ロ",null,null,null,null,null,null,null,null,null,"円"]
[]
[]
[]
[null,null,null,null,null,null,null,null,null,null,null,null,null,null,null,null,null,null,null,null,null,null,null,null,null,"一時",null,null,null,null,null,null,null,null,null,null,null,null,null,null,null,null,null,null,null,null,null,null,null,null,null,null,null,null,null,null,{"$f":"AJ347-AU347","v":0},null,null,null,null,null,null,null,null,null,null,{"$f":"IF(AJ347=\"\",0,500000)","v":0},null,null,null,null,null,null,null,null,null,"ハ",null,{"$f":"BE347-BP347","v":0},null,null,null,null,null,null,null,"円"]
[]
[]
[]
[null,null,null,null,null,null,null,null,null,null,null,null,null,null,null,null,null,null,null,null,null,null,null,null,null,"　右上のイの金額を表面のコに、ロの金額を表面のサに、ハの金額を表面のシに記入してください。",null,null,null,null,null,null,null,null,null,null,null,null,null,null,null,null,null,null,null,null,null,null,null,null,null,null,null,null,null,null,null,null,null,null,null,null,null,null,"ニ　合計　ｲ+〔(ﾛ+ﾊ)×1/2〕",null,null,null,null,null,null,null,null,null,null,null,null,{"$f":"CB339+(CB343+CB347)*0.5","v":0}]
[]
[null,null,null,null,null,null,null,null,null,null,null,null,null,null,null,null,null,null,null,null,null,null,null,null,null,"　右のニの金額を表面の⑪の所得金額欄へ記入してください。"]
[]
[]
[]
[null,null,null,null,null,null,null,null,null,null,null,null,null,null,null,null,null,null,null,null,null,null,null,null,null,"11 事業専従者に関する事項",null,null,null,null,null,null,null,null,null,null,null,null,null,null,null,null,null,null,null,null,null,null,null,null,null,null,null,null,null,null,null,null,null,null,null,null,null,null,null,null,null,null,null,null,null,null,null,null,null,"13 事業税に関する事項"]
[]
[]
[null,null,null,null,null,null,null,null,null,null,null,null,null,null,null,null,null,null,null,null,null,null,null,null,null,1,null,"フリガナ",null,null,null,null,null,null,null,null,null,null,null,null,null,null,"続柄",null,null,null,null,null,"生年月日",null,"明・大・昭\n平・令",null,null,null,"　　・　 ・　 ",null,null,null,null,"専従者給与\n（控除）額",null,null,null,null,null,null,null,null,null,null,null,null,null,null,null,"　非課税\n　所得など",null,null,null,null,"所得金額",null,null,null,"円"]
[]
[null,null,null,null,null,null,null,null,null,null,null,null,null,null,null,null,null,null,null,null,null,null,null,null,null,null,null,"氏名"]
[]
[null,null,null,null,null,null,null,null,null,null,null,null,null,null,null,null,null,null,null,null,null,null,null,null,null,null,null,null,null,null,null,null,null,null,null,null,null,null,null,null,null,null,null,null,null,null,null,null,null,null,null,null,null,null,null,null,null,null,null,null,null,null,null,null,null,null,null,null,null,null,null,null,null,null,null,"損益通算の特例適用前の不動産所得",null,null,null,null,"円"]
[]
[null,null,null,null,null,null,null,null,null,null,null,null,null,null,null,null,null,null,null,null,null,null,null,null,null,null,null,"個人番号",null,null,null,null,null,null,null,null,null,null,null,null,null,null,null,null,null,null,null,null,null,null,null,null,null,null,"従事\n月数"]
[]
[]
[]
[null,null,null,null,null,null,null,null,null,null,null,null,null,null,null,null,null,null,null,null,null,null,null,null,null,2,null,"フリガナ",null,null,null,null,null,null,null,null,null,null,null,null,null,null,"続柄",null,null,null,null,null,"生年月日",null,"明・大・昭\n平・令",null,null,null,"　　・　 ・　 ",null,null,null,null,"専従者給与\n（控除）額",null,null,null,null,null,null,null,null,null,null,null,null,null,null,null,"事業用\n資産の\n譲渡損\n失など",null,null,"資産の種類"]
[]
[null,null,null,null,null,null,null,null,null,null,null,null,null,null,null,null,null,null,null,null,null,null,null,null,null,null,null,"氏名"]
[]
[null,null,null,null,null,null,null,null,null,null,null,null,null,null,null,null,null,null,null,null,null,null,null,null,null,null,null,null,null,null,null,null,null,null,null,null,null,null,null,null,null,null,null,null,null,null,null,null,null,null,null,null,null,null,null,null,null,null,null,null,null,null,null,null,null,null,null,null,null,null,null,null,null,null,null,null,null,null,"損失額、被災損失額（白）",null,null,null,null,null,null,null,null,"円"]
[]
[null,null,null,null,null,null,null,null,null,null,null,null,null,null,null,null,null,null,null,null,null,null,null,null,null,null,null,"個人番号",null,null,null,null,null,null,null,null,null,null,null,null,null,null,null,null,null,null,null,null,null,null,null,null,null,null,"従事\n月数"]
[]
[null,null,null,null,null,null,null,null,null,null,null,null,null,null,null,null,null,null,null,null,null,null,null,null,null,null,null,null,null,null,null,null,null,null,null,null,null,null,null,null,null,null,null,null,null,null,null,null,null,null,null,null,null,null,null,null,null,null,null,null,null,null,null,null,null,null,null,null,null,null,null,null,null,null,null,"前年中の\n開廃業",null,null,null,null,"開始・廃止"]
[]
[null,null,null,null,null,null,null,null,null,null,null,null,null,null,null,null,null,null,null,null,null,null,null,null,null,3,null,"フリガナ",null,null,null,null,null,null,null,null,null,null,null,null,null,null,"続柄",null,null,null,null,null,"生年月日",null,"明・大・昭\n平・令",null,null,null,"　　・　 ・　 ",null,null,null,null,"専従者給与\n（控除）額"]
[]
[null,null,null,null,null,null,null,null,null,null,null,null,null,null,null,null,null,null,null,null,null,null,null,null,null,null,null,"氏名",null,null,null,null,null,null,null,null,null,null,null,null,null,null,null,null,null,null,null,null,null,null,null,null,null,null,null,null,null,null,null,null,null,null,null,null,null,null,null,null,null,null,null,null,null,null,null,null,null,null,null,null,"月　　　日"]
[]
[]
[]
[null,null,null,null,null,null,null,null,null,null,null,null,null,null,null,null,null,null,null,null,null,null,null,null,null,null,null,"個人番号",null,null,null,null,null,null,null,null,null,null,null,null,null,null,null,null,null,null,null,null,null,null,null,null,null,null,"従事\n月数",null,null,null,null,null,null,null,null,null,null,null,null,null,null,null,null,null,null,null,null,"□他都道府県の事務所等"]
[]
[]
[]
[null,null,null,null,null,null,null,null,null,null,null,null,null,null,null,null,null,null,null,null,null,null,null,null,null,null,null,null,null,null,"所得税における青色申告の承認の有無",null,null,null,null,null,null,null,null,null,null,null,null,null,null,null,null,null,null,"承認あり・承認なし",null,null,null,null,null,null,null,null,null,"合計額"]
[]
[]
[]
[]
[null,null,null,null,null,null,null,null,null,null,null,null,null,null,null,null,null,null,null,null,null,null,null,null,null,"12 別居の扶養親族等に関する事項"]
[]
[]
[null,null,null,null,null,null,null,null,null,null,null,null,null,null,null,null,null,null,null,null,null,null,null,null,null,1,null,"フリガナ",null,null,null,null,null,null,null,null,null,null,null,null,null,null,"個人番号",null,null,null,null,null,null,null,null,null,null,null,null,null,null,null,null,null,null,null,null,null,null,null,null,null,null,"住所",null,null,null,null,null,null,null,null,null,"国外居住",null,"□配偶者\n□30歳未満又は70歳以上\n□留学　□障害者\n□38万円以上の支払"]
[]
[null,null,null,null,null,null,null,null,null,null,null,null,null,null,null,null,null,null,null,null,null,null,null,null,null,null,null,"氏名"]
[]
[]
[]
[null,null,null,null,null,null,null,null,null,null,null,null,null,null,null,null,null,null,null,null,null,null,null,null,null,2,null,"フリガナ",null,null,null,null,null,null,null,null,null,null,null,null,null,null,"個人番号",null,null,null,null,null,null,null,null,null,null,null,null,null,null,null,null,null,null,null,null,null,null,null,null,null,null,"住所",null,null,null,null,null,null,null,null,null,"国外居住",null,"□配偶者\n□30歳未満又は70歳以上\n□留学　□障害者\n□38万円以上の支払"]
[]
[null,null,null,null,null,null,null,null,null,null,null,null,null,null,null,null,null,null,null,null,null,null,null,null,null,null,null,"氏名"]
[]
[]
[]
[null,null,null,null,null,null,null,null,null,null,null,null,null,null,null,null,null,null,null,null,null,null,null,null,null,3,null,"フリガナ",null,null,null,null,null,null,null,null,null,null,null,null,null,null,"個人番号",null,null,null,null,null,null,null,null,null,null,null,null,null,null,null,null,null,null,null,null,null,null,null,null,null,null,"住所",null,null,null,null,null,null,null,null,null,"国外居住",null,"□配偶者\n□30歳未満又は70歳以上\n□留学　□障害者\n□38万円以上の支払"]
[]
[null,null,null,null,null,null,null,null,null,null,null,null,null,null,null,null,null,null,null,null,null,null,null,null,null,null,null,"氏名"]
[]
[]
[]
[]
[]
[null,null,null,null,null,null,null,null,null,null,null,null,null,null,null,null,null,null,null,null,null,null,null,null,null,"14 寄附金に関する事項"]
[]
[]
[null,null,null,null,null,null,null,null,null,null,null,null,null,null,null,null,null,null,null,null,null,null,null,null,null,"都道府県、市区町村分\n（特例控除対象）",null,null,null,null,null,null,null,null,null,null,null,null,null,null,null,null,null,null,null,null,null,null,null,null,null,"円"]
[]
[]
[]
[null,null,null,null,null,null,null,null,null,null,null,null,null,null,null,null,null,null,null,null,null,null,null,null,null,"住所地の共同募金会、日赤支部分・都道府県、市区町村分（特例控除対象以外）"]
[]
[]
[]
[null,null,null,null,null,null,null,null,null,null,null,null,null,null,null,null,null,null,null,null,null,null,null,null,null,"条例指定分",null,null,null,null,null,null,null,"都道府県"]
[]
[]
[]
[null,null,null,null,null,null,null,null,null,null,null,null,null,null,null,null,null,null,null,null,null,null,null,null,null,null,null,null,null,null,null,null,null,"市区町村"]
[]
[]
[]
[null,null,null,null,null,null,null,null,null,null,null,null,null,null,null,null,null,null,null,null,null,null,null,null,null,"　支出した寄附金に応じて、各欄にそれぞれ寄附した金額を記入してください。ただし、認定特定非営利活動法人及び仮認定特定非営利活動法人以外の特定非営利活動法人に対する寄附金については、上欄に記入せず、別途「寄附金税額控除申告書（二）」を提出して下さい。"]
[]
[]
[]
[]
[]
[]
[]
[]
[null,null,null,null,null,null,null,null,null,null,null,null,null,null,null,null,null,null,null,null,null,null,null,null,null,"15 所得金額調整控除に関する事項"]
[]
[]
[null,null,null,null,null,null,null,null,null,null,null,null,null,null,null,null,null,null,null,null,null,null,null,null,null,"フリガナ",null,null,null,null,null,null,null,null,null,null,null,null,null,null,"続柄",null,null,null,null,null,"生年月日",null,"明・大・昭\n平・令",null,null,null,"　　・　 ・　 ",null,null,null,null,"特別障害者に\n該当する場合",null,null,null,null,null,null,null,null,null,"級度",null,"別居の場合\nの住所"]
[]
[]
[]
[null,null,null,null,null,null,null,null,null,null,null,null,null,null,null,null,null,null,null,null,null,null,null,null,null,"氏名"]
[]
[]
[]
[null,null,null,null,null,null,null,null,null,null,null,null,null,null,null,null,null,null,null,null,null,null,null,null,null,"個人番号"]
[]
[]
[]
[]
[]
[]
[]
[]
[null,null,null,null,null,null,null,null,null,null,null,null,null,null,null,null,null,null,null,null,null,null,null,null,null,null,null,null,null,null,null,null,null,null,null,null,null,null,null,null,null,null,null,null,null,null,"（切り取らないでください。）"]